bitfinex/quotes_BTCUSD_20250727
["timestamp","ask_amount","ask_price","bid_price","bid_amount"]
[1753657614861,0.91238092,119680.0,119670.0,0.2110522]
[1753657615300,0.91238092,119680.0,119670.0,0.21105178]
[1753657615513,0.91238092,119680.0,119670.0,0.20269589]
[1753657615725,0.92073646,119680.0,119670.0,0.20269589]
[1753657616570,0.91238092,119680.0,119670.0,0.20269589]
[1753657616784,0.90402545,119680.0,119670.0,0.20269561]
[1753657617927,0.90402545,119680.0,119670.0,0.21105143]
[1753657618138,0.90402545,119680.0,119670.0,0.20269561]
[1753657618437,0.90402545,119680.0,119670.0,0.21105143]
[1753657618639,0.65247211,119680.0,119670.0,0.21105143]
[1753657619036,0.90402545,119680.0,119670.0,0.20269561]
[1753657619243,0.90402545,119680.0,119670.0,0.21105143]
[1753657619987,0.91238092,119680.0,119670.0,0.20269561]
[1753657620488,0.91238092,119680.0,119670.0,0.21105143]
[1753657620707,0.59968138,119680.0,119670.0,0.21105143]
[1753657620918,0.85959005,119680.0,119670.0,0.21105143]
[1753657621128,0.85123472,119680.0,119670.0,0.21105143]
[1753657621336,0.85958991,119680.0,119670.0,0.21105143]
[1753657621757,0.86794517,119680.0,119670.0,0.21105143]
[1753657622847,0.8763005,119680.0,119670.0,0.21105143]
[1753657623768,0.86794517,119680.0,119670.0,0.21105143]
[1753657624220,0.85119472,119680.0,119670.0,0.21105143]
[1753657624433,0.85954998,119680.0,119670.0,0.21105143]
[1753657624888,0.85119472,119680.0,119670.0,0.21105143]
[1753657625284,0.81895458,119680.0,119670.0,0.27406143]
[1753657625489,0.56740124,119680.0,119670.0,0.30626143]
[1753657625700,0.55904626,119680.0,119670.0,0.55781477]
[1753657625873,0.13456896,119680.0,119670.0,0.55781477]
[1753657629157,0.00436896,119680.0,119670.0,0.55781477]
[1753657629363,0.13452896,119680.0,119670.0,0.55781477]
[1753657630140,0.00436896,119680.0,119670.0,0.55781477]
[1753657630339,0.13452896,119680.0,119670.0,0.55781477]
[1753657634495,0.16436896,119680.0,119670.0,0.55781477]
[1753657638289,0.13452896,119680.0,119670.0,0.55781477]
[1753657641770,0.16436896,119680.0,119670.0,0.55781477]
[1753657644828,0.13452896,119680.0,119670.0,0.55781477]
[1753657645045,0.00436896,119680.0,119670.0,0.55781477]
[1753657645265,0.13444896,119680.0,119670.0,0.55781477]
[1753657655664,0.13444896,119680.0,119670.0,0.30626143]
[1753657655871,0.13444896,119680.0,119670.0,0.55781477]
[1753657656720,0.13008,119680.0,119670.0,0.64229207]
[1753657656973,0.13008,119680.0,119670.0,0.80936811]
[1753657657175,0.06765042,119690.0,119680.0,0.19217828]
[1753657657384,0.19765042,119690.0,119680.0,0.79256496]
[1753657658492,0.06765042,119690.0,119680.0,0.79256496]
[1753657658707,0.22660042,119690.0,119680.0,0.28945828]
[1753657658911,0.22660042,119690.0,119680.0,0.47718162]
[1753657659151,0.22864042,119690.0,119680.0,0.47718162]
[1753657659770,0.22864042,119690.0,119680.0,0.44578162]
[1753657661126,0.22864042,119690.0,119680.0,0.47648162]
[1753657661727,0.16099,119690.0,119680.0,0.47648162]
[1753657669253,0.16099,119690.0,119680.0,0.47572162]
[1753657669721,0.16099,119690.0,119680.0,0.25476828]
[1753657669936,0.16099,119690.0,119680.0,0.75787496]
[1753657670157,0.15895,119690.0,119680.0,0.22713828]
[1753657670366,0.16099,119690.0,119680.0,0.47572162]
[1753657671635,0.16099,119690.0,119680.0,0.22416828]
[1753657671847,0.16099,119690.0,119680.0,0.47572162]
[1753657674709,0.15895,119690.0,119680.0,0.22713828]
[1753657674914,0.15895,119690.0,119680.0,0.47869162]
[1753657677344,0.15895,119690.0,119680.0,0.44799162]
[1753657677807,0.15895,119690.0,119680.0,0.44502162]
[1753657678002,0.16103,119690.0,119680.0,0.44502162]
[1753657680200,0.16103,119690.0,119680.0,0.69657496]
[1753657680423,0.16103,119690.0,119680.0,0.22536828]
[1753657680632,0.16402,119690.0,119680.0,0.44297162]
[1753657680830,0.22602,119690.0,119680.0,0.44297162]
[1753657681312,0.57875969,119690.0,119680.0,0.18382316]
[1753657681523,0.32720607,119690.0,119680.0,0.19217828]
[1753657682148,0.327206,119690.0,119680.0,0.19217828]
[1753657682795,0.3104973,119690.0,119680.0,0.19217828]
[1753657683002,0.3355607,119690.0,119680.0,0.19217828]
[1753657683213,0.3439154,119690.0,119680.0,0.1838233]
[1753657683439,0.07025512,119680.0,119670.0,0.16727163]
[1753657683668,1.04059474,119680.0,119670.0,0.16727163]
[1753657684086,1.03223962,119680.0,119670.0,0.17562794]
[1753657684301,1.03223962,119680.0,119670.0,0.18398418]
[1753657684516,0.86512733,119680.0,119670.0,0.20069645]
[1753657685198,0.86512733,119680.0,119670.0,0.18398418]
[1753657685401,1.03223962,119680.0,119670.0,0.18398418]
[1753657686024,1.03223962,119680.0,119670.0,0.19234035]
[1753657686437,1.03223962,119680.0,119670.0,0.20069645]
[1753657687090,1.03223962,119680.0,119670.0,0.19234035]
[1753657688219,1.04059523,119680.0,119670.0,0.19234035]
[1753657688609,1.04059523,119680.0,119670.0,0.20069645]
[1753657688920,0.87348294,119680.0,119670.0,0.20905248]
[1753657689132,0.87348294,119680.0,119670.0,0.19234035]
[1753657689340,0.87348294,119680.0,119670.0,0.20069645]
[1753657689673,0.87348294,119680.0,119670.0,0.20905248]
[1753657689855,0.86512733,119680.0,119670.0,0.20905248]
[1753657690055,0.86512733,119680.0,119670.0,0.20069645]
[1753657690279,0.86512733,119680.0,119670.0,0.20905248]
[1753657690687,0.79747691,119680.0,119670.0,0.20905178]
[1753657690894,0.78912137,119680.0,119670.0,0.20905178]
[1753657691051,0.78912137,119680.0,119670.0,0.20069589]
[1753657691276,0.79747691,119680.0,119670.0,0.19233993]
[1753657691467,0.79747691,119680.0,119670.0,0.1839839]
[1753657691801,0.9645892,119680.0,119670.0,0.19233993]
[1753657692016,0.9645892,119680.0,119670.0,0.1839839]
[1753657692229,0.54592357,119680.0,119670.0,0.19233993]
[1753657692448,0.79747691,119680.0,119670.0,0.20069589]
[1753657692680,0.78912137,119680.0,119670.0,0.20069589]
[1753657692896,0.78912137,119680.0,119670.0,0.20905178]
[1753657693544,0.78912095,119680.0,119670.0,0.20905178]
[1753657693749,0.79747635,119680.0,119670.0,0.19233972]
[1753657693959,0.78912095,119680.0,119670.0,0.19233972]
[1753657694171,0.78912095,119680.0,119670.0,0.20069561]
[1753657694797,0.78076569,119680.0,119670.0,0.20905143]
[1753657695832,0.78912088,119680.0,119670.0,0.20905143]
[1753657696048,0.78912088,119680.0,119670.0,0.16727163]
[1753657696253,0.79747628,119680.0,119670.0,0.1756278]
[1753657697106,0.79747621,119680.0,119670.0,0.18398383]
[1753657697309,0.79747614,119680.0,119670.0,0.20069568]
[1753657697509,0.79747614,119680.0,119670.0,0.19233979]
[1753657697757,0.80583154,119680.0,119670.0,0.19233979]
[1753657697958,0.79747614,119680.0,119670.0,0.19233979]
[1753657698175,0.5459228,119680.0,119670.0,0.19233979]
[1753657698390,0.79747614,119680.0,119670.0,0.19233979]
[1753657698578,0.80583147,119680.0,119670.0,0.19233979]
[1753657698777,0.80583147,119680.0,119670.0,0.20069568]
[1753657698994,0.4893573,119680.0,119670.0,0.2110415]
[1753657699199,0.71587562,119680.0,119670.0,0.2110415]
[1753657699537,0.72423081,119680.0,119670.0,0.2110415]
[1753657699971,0.766676,119680.0,119670.0,0.2110415]
[1753657700214,0.75832074,119680.0,119670.0,0.2110415]
[1753657701065,0.766676,119680.0,119670.0,0.2110415]
[1753657701278,0.75832074,119680.0,119670.0,0.2110415]
[1753657701720,0.78912074,119680.0,119670.0,0.2110415]
[1753657701976,0.797476,119680.0,119670.0,0.2110415]
[1753657702190,0.91896074,119680.0,119670.0,0.2110415]
[1753657702404,0.91060562,119680.0,119670.0,0.2110415]
[1753657702603,0.91896074,119680.0,119670.0,0.2090515]
[1753657703253,0.65905228,119680.0,119670.0,0.2090515]
[1753657703463,0.91060562,119680.0,119670.0,0.2090515]
[1753657703699,0.91896081,119680.0,119670.0,0.2090515]
[1753657703841,0.91060562,119680.0,119670.0,0.2090515]
[1753657704118,0.92731593,119680.0,119670.0,0.2090515]
[1753657704301,0.91896067,119680.0,119670.0,0.2090515]
[1753657704640,0.92731586,119680.0,119670.0,0.2090515]
[1753657705719,0.93567119,119680.0,119670.0,0.2090515]
[1753657706574,0.93567112,119680.0,119670.0,0.2090515]
[1753657706786,0.92731586,119680.0,119670.0,0.2090515]
[1753657707355,0.93567112,119680.0,119670.0,0.2090515]
[1753657707803,0.93567112,119680.0,119670.0,0.19233979]
[1753657708003,0.93567154,119680.0,119670.0,0.19233972]
[1753657708288,0.93567154,119680.0,119670.0,0.20069554]
[1753657708631,0.93567154,119680.0,119670.0,0.19233972]
[1753657708834,0.92731614,119680.0,119670.0,0.20069554]
[1753657709037,0.93567154,119680.0,119670.0,0.20069554]
[1753657709245,0.92731614,119680.0,119670.0,0.20069554]
[1753657709454,0.6757628,119680.0,119670.0,0.20069554]
[1753657709654,0.92731621,119680.0,119670.0,0.20069554]
[1753657710234,0.91896088,119680.0,119670.0,0.20069554]
[1753657710439,0.92731614,119680.0,119670.0,0.20069554]
[1753657710630,0.93567147,119680.0,119670.0,0.20069554]
[1753657711036,0.94402694,119680.0,119670.0,0.20069554]
[1753657711721,0.93567147,119680.0,119670.0,0.20069554]
[1753657711871,0.94402694,119680.0,119670.0,0.20069554]
[1753657712088,0.94402687,119680.0,119670.0,0.19233972]
[1753657712244,0.94402736,119680.0,119670.0,0.19233972]
[1753657712662,0.94402729,119680.0,119670.0,0.20069554]
[1753657712905,0.93567182,119680.0,119670.0,0.20069554]
[1753657713780,0.94402729,119680.0,119670.0,0.20069554]
[1753657714198,0.92731642,119680.0,119670.0,0.20069554]
[1753657716056,0.66740775,119680.0,119670.0,0.20069554]
[1753657716265,0.91896081,119680.0,119670.0,0.20069554]
[1753657716467,0.92731614,119680.0,119670.0,0.19233972]
[1753657716671,0.92731614,119680.0,119670.0,0.20069554]
[1753657720258,0.91896081,119680.0,119670.0,0.20069554]
[1753657720693,0.92731614,119680.0,119670.0,0.20069554]
[1753657721315,0.92731621,119680.0,119670.0,0.20069554]
[1753657721535,0.93567168,119680.0,119670.0,0.20069554]
[1753657721951,0.91896081,119680.0,119670.0,0.20069554]
[1753657722107,0.92731614,119680.0,119670.0,0.20069554]
[1753657723582,0.66740747,119680.0,119670.0,0.20069554]
[1753657723822,0.88816081,119680.0,119670.0,0.20069554]
[1753657724031,0.88816081,119680.0,119670.0,0.19233972]
[1753657724238,0.93607168,119680.0,119670.0,0.19233965]
[1753657724454,0.93607168,119680.0,119670.0,0.19233972]
[1753657724663,0.68451834,119680.0,119670.0,0.17562787]
[1753657724864,0.94442729,119680.0,119670.0,0.19233986]
[1753657725063,0.93607168,119680.0,119670.0,0.20905157]
[1753657725266,0.94442729,119680.0,119670.0,0.20069575]
[1753657726560,1.11153958,119680.0,119670.0,0.19233986]
[1753657726860,1.1031846,119680.0,119670.0,0.20069575]
[1753657727092,1.35473794,119680.0,119670.0,0.20069575]
[1753657727787,1.18762565,119680.0,119670.0,0.20905157]
[1753657728475,1.35473794,119680.0,119670.0,0.20905157]
[1753657729681,1.35461794,119680.0,119670.0,0.20905157]
[1753657729899,1.1030646,119680.0,119670.0,0.20905157]
[1753657730324,0.93595231,119680.0,119670.0,0.20905157]
[1753657730553,1.1030646,119680.0,119670.0,0.20905157]
[1753657730973,0.93595231,119680.0,119670.0,0.20905157]
[1753657731622,1.35461794,119680.0,119670.0,0.20069575]
[1753657732042,0.93595231,119680.0,119670.0,0.20905157]
[1753657732472,1.1030646,119680.0,119670.0,0.20905157]
[1753657732891,1.1030646,119680.0,119670.0,0.20069575]
[1753657734454,1.35461794,119680.0,119670.0,0.20069575]
[1753657734920,1.35461794,119680.0,119670.0,0.1839839]
[1753657735133,1.34626275,119680.0,119670.0,0.1839839]
[1753657735313,1.34626275,119680.0,119670.0,0.1833839]
[1753657735769,1.31506275,119680.0,119670.0,0.1833839]
[1753657735972,1.31506275,119680.0,119670.0,0.19173986]
[1753657736390,1.34756275,119680.0,119670.0,0.19173986]
[1753657736819,1.09600941,119680.0,119670.0,0.19173986]
[1753657737667,0.96628941,119680.0,119670.0,0.19173986]
[1753657737876,1.34752275,119680.0,119670.0,0.19173986]
[1753657738552,0.84441607,119680.0,119670.0,0.19173986]
[1753657738763,1.09596941,119680.0,119670.0,0.20009575]
[1753657739187,0.84441607,119680.0,119670.0,0.20009575]
[1753657739397,1.09596941,119680.0,119670.0,0.20009575]
[1753657740098,0.84441607,119680.0,119670.0,0.20009575]
[1753657740324,1.09596941,119680.0,119670.0,0.20009575]
[1753657741192,1.09596941,119680.0,119670.0,0.19173986]
[1753657741402,1.08761401,119680.0,119670.0,0.17502787]
[1753657741637,1.08761401,119680.0,119670.0,0.18338404]
[1753657741862,1.33916735,119680.0,119670.0,0.18338404]
[1753657742140,6.33081188,119680.0,119670.0,0.00014537]
[1753657742596,6.60762844,119680.0,119670.0,0.00014537]
[1753657744555,6.61348496,119680.0,119670.0,0.00014537]
[1753657744775,6.61448496,119680.0,119670.0,0.00014537]
[1753657744983,6.61348496,119680.0,119670.0,0.00014537]
[1753657745214,5.87544209,119680.0,119670.0,0.00014537]
[1753657745445,6.63010211,119680.0,119670.0,0.00014537]
[1753657746128,6.63010012,119680.0,119670.0,0.00014537]
[1753657748467,5.8754401,119680.0,119670.0,0.00014537]
[1753657748685,6.63008643,119680.0,119670.0,0.00014537]
[1753657750243,5.87542641,119680.0,119670.0,0.00014537]
[1753657750433,6.36291594,119680.0,119670.0,0.00014537]
[1753657750684,6.35706141,119680.0,119670.0,0.00014537]
[1753657751355,6.36290771,119680.0,119670.0,0.00014537]
[1753657751567,6.63005118,119680.0,119670.0,0.00014537]
[1753657753545,1.63005118,119680.0,119670.0,0.00014537]
[1753657754030,6.6300291,119680.0,119670.0,0.00014537]
[1753657756780,6.63002501,119680.0,119670.0,0.00014537]
[1753657759759,6.63001926,119680.0,119670.0,0.00014537]
[1753657760311,6.63001676,119680.0,119670.0,0.00014537]
[1753657761344,6.63001688,119680.0,119670.0,0.00014537]
[1753657767218,1.63001688,119680.0,119670.0,0.00014537]
[1753657767436,6.63001688,119680.0,119670.0,0.00014537]
[1753657768353,1.63002264,119680.0,119670.0,0.00014537]
[1753657768595,6.63002264,119680.0,119670.0,0.00014537]
[1753657769054,7.38468266,119680.0,119670.0,0.00014537]
[1753657769624,6.63002264,119680.0,119670.0,0.00014537]
[1753657769824,7.38468266,119680.0,119670.0,0.00014537]
[1753657770470,7.78468266,119680.0,119670.0,0.00014537]
[1753657771564,0.18388448,119640.0,119630.0,0.08945]
[1753657771783,0.18388448,119640.0,119620.0,0.02995]
[1753657771784,0.5155411,119630.0,119620.0,0.02995]
[1753657772016,1.23272508,119630.0,119620.0,0.00496]
[1753657772233,0.74234632,119630.0,119620.0,0.27311129]
[1753657772490,0.74234632,119630.0,119620.0,0.27311122]
[1753657772673,0.99389966,119630.0,119620.0,0.26475149]
[1753657772903,0.99389966,119630.0,119620.0,0.09755537]
[1753657773774,0.99489966,119630.0,119620.0,0.09755537]
[1753657774412,0.99789966,119630.0,119620.0,0.09755537]
[1753657775693,1.02481966,119630.0,119620.0,0.03930537]
[1753657775915,1.276373,119630.0,119620.0,0.00840537]
[1753657776804,1.02481966,119630.0,119620.0,0.04070537]
[1753657777671,1.276373,119630.0,119620.0,0.04070537]
[1753657778302,1.276373,119630.0,119620.0,0.03774537]
[1753657778516,1.278373,119630.0,119620.0,0.00544537]
[1753657779154,1.281493,119630.0,119620.0,0.00544537]
[1753657779801,1.281493,119630.0,119620.0,0.00348537]
[1753657780012,1.314093,119630.0,119620.0,0.00348537]
[1753657780711,1.33882721,119630.0,119620.0,0.00348537]
[1753657780924,0.83572053,119630.0,119620.0,0.00348537]
[1753657781132,1.30622721,119630.0,119620.0,0.00348537]
[1753657781794,0.80312053,119630.0,119620.0,0.00544537]
[1753657782010,1.30622721,119630.0,119620.0,0.00544537]
[1753657782846,1.30622721,119630.0,119620.0,0.00348537]
[1753657783058,1.37052721,119630.0,119620.0,0.00348537]
[1753657785975,0.86742053,119630.0,119620.0,0.00348537]
[1753657786217,1.37052721,119630.0,119620.0,0.00348537]
[1753657786927,1.20333599,119630.0,119620.0,0.00348537]
[1753657787350,1.17153599,119630.0,119620.0,0.00348537]
[1753657787554,6.20163599,119630.0,119620.0,0.00348537]
[1753657788015,6.20747162,119630.0,119620.0,0.00348537]
[1753657793011,6.17737162,119630.0,119620.0,0.00348537]
[1753657793251,1.17737162,119630.0,119620.0,0.00348537]
[1753657793480,6.17737162,119630.0,119620.0,0.00348537]
[1753657794631,6.17737024,119630.0,119620.0,0.00348537]
[1753657795534,6.17737018,119630.0,119620.0,0.00348537]
[1753657799379,6.17737018,119630.0,119620.0,0.00300537]
[1753657800369,6.18515761,119630.0,119620.0,0.00300537]
[1753657800835,6.20073233,119630.0,119620.0,0.00300537]
[1753657801193,6.18515761,119630.0,119620.0,0.00300537]
[1753657801571,6.20073783,119630.0,119620.0,0.00300537]
[1753657802127,6.17737018,119630.0,119620.0,0.00300537]
[1753657802331,6.18516133,119630.0,119620.0,0.00300537]
[1753657803044,6.17737018,119630.0,119620.0,0.00300537]
[1753657803513,6.37825018,119630.0,119620.0,0.00300537]
[1753657804094,6.04233472,119630.0,119620.0,0.00300537]
[1753657804324,6.21615018,119630.0,119620.0,0.00300537]
[1753657804559,0.12341473,119630.0,119620.0,0.61280661]
[1753657804784,0.24726054,119630.0,119620.0,0.62952544]
[1753657805008,0.58726054,119630.0,119620.0,0.29360998]
[1753657805229,0.46593915,119630.0,119620.0,0.3019695]
[1753657805440,0.59465915,119630.0,119620.0,0.30196943]
[1753657805662,0.25465915,119630.0,119620.0,0.30196943]
[1753657805884,0.59665915,119630.0,119620.0,0.28525067]
[1753657806096,0.4752979,119630.0,119620.0,0.29361005]
[1753657806310,0.2620179,119630.0,119620.0,0.29361005]
[1753657806740,0.6030179,119630.0,119620.0,0.28525067]
[1753657806977,0.60937672,119630.0,119620.0,0.26853149]
[1753657807201,0.60937672,119630.0,119620.0,0.28525081]
[1753657807445,0.59500154,119630.0,119620.0,0.27689122]
[1753657807674,0.59500154,119630.0,119620.0,0.28525088]
[1753657808201,0.5950014,119630.0,119620.0,0.2936104]
[1753657808423,0.92255825,119630.0,119620.0,0.26853149]
[1753657808638,0.92255825,119630.0,119620.0,0.28525074]
[1753657808845,0.92255825,119630.0,119620.0,0.29361019]
[1753657809066,1.09809949,119630.0,119620.0,0.26853149]
[1753657809286,1.09809949,119630.0,119620.0,0.27689129]
[1753657809504,0.92255825,119630.0,119620.0,0.29361061]
[1753657809709,1.09809935,119630.0,119620.0,0.28525102]
[1753657809935,1.10645845,119630.0,119620.0,0.29361061]
[1753657810360,1.0980997,119630.0,119620.0,0.27689129]
[1753657810575,1.08974088,119630.0,119620.0,0.27689129]
[1753657810870,1.08974088,119630.0,119620.0,0.28525102]
[1753657811100,1.08138199,119630.0,119620.0,0.26853149]
[1753657811337,1.08138199,119630.0,119620.0,0.27689129]
[1753657811550,1.08138199,119630.0,119620.0,0.26853149]
[1753657812030,1.07515303,119630.0,119620.0,0.07078537]
[1753657812248,1.07515303,119630.0,119620.0,0.00300537]
[1753657812249,1.10598303,119630.0,119620.0,0.00300537]
[1753657812475,1.16758303,119630.0,119620.0,0.00300537]
[1753657812906,1.19227824,119630.0,119620.0,0.00300537]
[1753657813544,6.19227824,119630.0,119620.0,0.00300537]
[1753657817403,6.20972726,119630.0,119620.0,0.00300537]
[1753657817649,6.21557321,119630.0,119620.0,0.00300537]
[1753657817869,6.25628328,119630.0,119620.0,0.00300537]
[1753657818563,6.25328328,119630.0,119620.0,0.00300537]
[1753657818778,6.45716328,119630.0,119620.0,0.00300537]
[1753657819218,1.45716328,119630.0,119620.0,0.00300537]
[1753657819439,6.45716328,119630.0,119620.0,0.00300537]
[1753657819874,6.46016263,119630.0,119620.0,0.00300537]
[1753657822670,6.46016124,119630.0,119620.0,0.00300537]
[1753657822867,6.51016124,119630.0,119620.0,0.00300537]
[1753657824136,6.51795464,119630.0,119620.0,0.00300537]
[1753657825125,0.5239306,119610.0,119600.0,0.003]
[1753657825328,0.7400579,119610.0,119600.0,0.003]
[1753657825541,1.07597336,119610.0,119600.0,0.003]
[1753657825814,1.10905239,119610.0,119600.0,0.003]
[1753657826448,1.15109083,119610.0,119600.0,0.003]
[1753657827512,1.18279083,119610.0,119600.0,0.003]
[1753657828380,1.11859083,119610.0,119600.0,0.003]
[1753657828845,1.11859083,119610.0,119600.0,0.00502]
[1753657829271,1.11959083,119610.0,119600.0,0.00502]
[1753657831988,1.11658083,119610.0,119600.0,0.03632]
[1753657832184,1.11959083,119610.0,119600.0,0.003]
[1753657833055,1.18409083,119610.0,119600.0,0.003]
[1753657833768,6.18409083,119610.0,119600.0,0.003]
[1753657836531,5.84817537,119610.0,119600.0,0.003]
[1753657836736,5.81557537,119610.0,119600.0,0.003]
[1753657836863,6.11959083,119610.0,119600.0,0.003]
[1753657839930,6.53989324,119610.0,119600.0,0.003]
[1753657840151,6.56501824,119610.0,119600.0,0.003]
[1753657840576,0.85987683,119590.0,119580.0,0.02741303]
[1753657840831,6.47600413,119590.0,119580.0,0.02741303]
[1753657841055,6.53481413,119590.0,119580.0,0.02741303]
[1753657841267,6.53918316,119590.0,119580.0,0.02741303]
[1753657841977,6.53918316,119590.0,119580.0,0.0275585]
[1753657842412,6.54018316,119590.0,119580.0,0.0275585]
[1753657842618,6.57128316,119590.0,119580.0,0.0275585]
[1753657842797,6.17128316,119590.0,119580.0,0.0275585]
[1753657843428,6.18873218,119590.0,119580.0,0.0275585]
[1753657844066,6.21013617,119590.0,119580.0,0.0275585]
[1753657844494,6.61013733,119590.0,119580.0,0.0275585]
[1753657844937,6.21013733,119590.0,119580.0,0.0275585]
[1753657845362,6.20913733,119590.0,119580.0,0.0275585]
[1753657846036,6.41709444,119580.0,119570.0,0.00024]
[1753657846254,6.73185373,119580.0,119570.0,0.00024]
[1753657846484,6.34741235,119580.0,119570.0,0.00024]
[1753657846700,6.37254335,119580.0,119570.0,0.00024]
[1753657846921,0.53307821,119570.0,119560.0,0.0032]
[1753657847154,7.08465643,119570.0,119560.0,0.0032]
[1753657847387,6.71336643,119570.0,119560.0,0.0032]
[1753657847614,6.71919812,119570.0,119560.0,0.0032]
[1753657848090,6.73474885,119570.0,119560.0,1e-08]
[1753657848317,6.1447929,119560.0,119550.0,0.0002]
[1753657848546,7.06146112,119560.0,119550.0,0.0002]
[1753657848766,6.66146112,119560.0,119550.0,0.0002]
[1753657849493,6.67129008,119560.0,119550.0,0.0002]
[1753657849975,6.68682705,119560.0,119550.0,0.0002]
[1753657850183,6.7124146,119560.0,119550.0,0.0002]
[1753657850843,6.7144146,119560.0,119550.0,0.0002]
[1753657852672,1.7144146,119560.0,119550.0,0.0002]
[1753657852909,6.7144146,119560.0,119550.0,0.0002]
[1753657853639,1.7144146,119560.0,119550.0,0.0002]
[1753657854153,6.7144146,119560.0,119550.0,0.0002]
[1753657854394,6.7395506,119560.0,119550.0,0.0002]
[1753657855090,6.73954151,119560.0,119550.0,0.0002]
[1753657856521,6.74391054,119560.0,119550.0,0.0002]
[1753657862778,6.74391007,119560.0,119550.0,0.0002]
[1753657864935,6.74395007,119560.0,119550.0,0.0002]
[1753657865168,6.71375007,119560.0,119550.0,0.0002]
[1753657865432,6.71375007,119560.0,119510.0,0.03035]
[1753657865433,0.50733601,119520.0,119510.0,0.03035]
[1753657865674,0.50733601,119520.0,119500.0,0.0032]
[1753657865675,0.50735001,119510.0,119500.0,0.0032]
[1753657865898,0.72154731,119510.0,119500.0,0.00528]
[1753657866123,0.7299146,119510.0,119500.0,0.17264401]
[1753657866892,0.73039905,119510.0,119500.0,0.20299401]
[1753657867868,0.73039905,119510.0,119500.0,0.21136221]
[1753657868079,0.73039905,119510.0,119500.0,0.20299401]
[1753657868532,0.73039905,119510.0,119500.0,0.26409401]
[1753657868757,0.73039905,119510.0,119500.0,0.26809401]
[1753657869197,0.72203176,119510.0,119500.0,0.10073]
[1753657869406,0.72203176,119510.0,119500.0,0.26809401]
[1753657870071,1.44744706,119510.0,119500.0,0.0072]
[1753657870341,6.6968168,119510.0,119500.0,1e-08]
[1753657870584,6.6968168,119510.0,119490.0,1e-08]
[1753657870585,5.99688109,119500.0,119490.0,1e-08]
[1753657870830,0.5650958,119490.0,119480.0,0.1032]
[1753657871019,6.14800856,119490.0,119480.0,0.1032]
[1753657871301,6.17890856,119490.0,119480.0,0.1032]
[1753657871955,6.22508012,119490.0,119480.0,0.1032]
[1753657872336,5.86436282,119490.0,119480.0,0.1032]
[1753657872528,6.53619374,119490.0,119480.0,0.1052]
[1753657872766,6.61134574,119490.0,119480.0,1e-08]
[1753657873154,6.63617558,119490.0,119480.0,1e-08]
[1753657873771,5.54159517,119470.0,119460.0,0.0210741]
[1753657873994,6.11504765,119470.0,119460.0,0.0210741]
[1753657874237,6.01615765,119470.0,119460.0,0.0231541]
[1753657874469,6.16010455,119470.0,119460.0,0.0261541]
[1753657874694,6.1659249,119470.0,119460.0,0.0261541]
[1753657874933,6.16640935,119470.0,119460.0,0.0261541]
[1753657875154,6.01153435,119470.0,119460.0,0.0261541]
[1753657875581,6.14225435,119470.0,119460.0,0.0261541]
[1753657876044,6.14422435,119470.0,119460.0,0.0231541]
[1753657876279,6.14735435,119470.0,119460.0,0.0231541]
[1753657876496,6.14735435,119470.0,119460.0,0.0241541]
[1753657876728,6.18045435,119470.0,119460.0,0.0220741]
[1753657877175,6.18045435,119470.0,119460.0,0.0241541]
[1753657877395,6.14730696,119470.0,119460.0,0.0241541]
[1753657878037,5.8113915,119470.0,119460.0,0.0241541]
[1753657878277,6.14730696,119470.0,119460.0,0.0241541]
[1753657878929,6.1557752,119470.0,119460.0,0.0241541]
[1753657879131,5.81985974,119470.0,119460.0,0.0241541]
[1753657879363,6.0229252,119470.0,119460.0,0.0241541]
[1753657879654,0.76965072,119470.0,119460.0,0.0861041]
[1753657879886,1.13326618,119470.0,119460.0,0.0271541]
[1753657880330,1.53521741,119470.0,119460.0,0.0241541]
[1753657880771,1.53834741,119470.0,119460.0,0.0220741]
[1753657880989,6.53834741,119470.0,119460.0,0.0220741]
[1753657881633,6.53834741,119470.0,119460.0,0.0241541]
[1753657882492,6.20243195,119470.0,119460.0,0.0241541]
[1753657882922,6.53834741,119470.0,119460.0,0.0241541]
[1753657883138,6.53830823,119470.0,119460.0,0.0241541]
[1753657884299,6.15575725,119470.0,119460.0,0.0220741]
[1753657884516,6.22005725,119470.0,119460.0,0.0220741]
[1753657885633,6.37005725,119470.0,119460.0,0.0220741]
[1753657886484,6.24466628,119470.0,119460.0,0.0220741]
[1753657886710,6.19242628,119470.0,119460.0,0.0220741]
[1753657887652,5.85651082,119470.0,119460.0,0.0220741]
[1753657887894,6.19242628,119470.0,119460.0,0.0220741]
[1753657888368,6.22552628,119470.0,119460.0,0.0220741]
[1753657888608,6.22552337,119470.0,119460.0,0.0220741]
[1753657889287,1.22552337,119470.0,119460.0,0.0220741]
[1753657889492,6.22552337,119470.0,119460.0,0.0220741]
[1753657891269,1.22552398,119470.0,119460.0,0.0220741]
[1753657891498,6.22552398,119470.0,119460.0,0.0220741]
[1753657893593,1.22552398,119470.0,119460.0,0.0220741]
[1753657893810,6.25067898,119470.0,119460.0,0.0220741]
[1753657895162,5.91476352,119470.0,119460.0,0.0220741]
[1753657895407,6.45187898,119470.0,119460.0,0.0220741]
[1753657895616,6.36589996,119470.0,119460.0,0.0241941]
[1753657896738,6.03493996,119470.0,119460.0,0.0241941]
[1753657896953,6.36589996,119470.0,119460.0,0.0241941]
[1753657897398,6.36887996,119470.0,119460.0,0.0241941]
[1753657899413,6.05087261,119470.0,119460.0,0.0241941]
[1753657899631,6.38678807,119470.0,119460.0,0.0241941]
[1753657899836,6.05087261,119470.0,119460.0,0.0241941]
[1753657900052,6.38678807,119470.0,119460.0,0.0241941]
[1753657900278,6.45018807,119470.0,119460.0,0.0220741]
[1753657900743,6.61763709,119470.0,119460.0,0.0220741]
[1753657900959,6.6399911,119470.0,119460.0,0.0220741]
[1753657901455,6.6399911,119470.0,119440.0,0.003]
[1753657901456,6.62325099,119470.0,119440.0,0.003]
[1753657901689,0.51583507,119430.0,119420.0,0.0346]
[1753657901920,6.1127872,119430.0,119420.0,0.003]
[1753657902158,6.15586253,119430.0,119420.0,0.003]
[1753657902521,6.18769156,119430.0,119420.0,0.003]
[1753657902744,6.2125214,119430.0,119420.0,0.003]
[1753657902986,6.26215263,119430.0,119420.0,0.003]
[1753657903193,6.2800858,119430.0,119420.0,0.003]
[1753657903402,6.23071606,119430.0,119420.0,0.003]
[1753657903850,6.23071549,119430.0,119420.0,0.003]
[1753657904308,1.23071549,119430.0,119420.0,0.003]
[1753657904523,6.23171549,119430.0,119420.0,0.003]
[1753657904736,6.22688073,119430.0,119420.0,0.003]
[1753657904959,6.21142136,119430.0,119420.0,0.003]
[1753657905596,6.23281307,119430.0,119420.0,0.003]
[1753657905795,6.21142136,119430.0,119420.0,0.003]
[1753657906272,5.8755059,119430.0,119420.0,0.003]
[1753657906483,6.43774436,119430.0,119420.0,0.003]
[1753657907152,6.45913544,119430.0,119420.0,0.003]
[1753657907797,6.60913544,119430.0,119420.0,0.003]
[1753657911198,6.62703388,119430.0,119420.0,0.003]